bitfinex/quotes_ETHUSD_20260119
["timestamp","ask_amount","ask_price","bid_price","bid_amount"]
[1768852683604,0.96109632,3220.0,3219.3,0.99652654]
[1768852685243,3.10568651,3219.9,3219.3,0.99652654]
[1768852685619,0.002,3219.6,3219.3,0.99652654]
[1768852687722,0.96109632,3219.6,3219.3,0.001]
[1768852701355,0.002,3219.6,3219.3,0.001]
[1768852701646,0.002,3219.6,3219.3,0.99652654]
[1768852706446,0.002,3219.6,3219.3,0.001]
[1768852725606,0.96584047,3219.6,3219.3,0.001]
[1768852727414,4.07184656,3219.6,3219.3,0.001]
[1768852738721,0.96584047,3219.6,3219.3,0.001]
[1768852740301,4.07181897,3219.6,3219.3,0.001]
[1768852742196,0.98512763,3219.5,3219.3,0.001]
[1768852742397,0.98512763,3219.5,3219.0,0.513]
[1768852742590,0.98512763,3219.5,3219.1,0.98442704]
[1768852747427,0.98512763,3219.4,3219.0,0.513]
[1768852750117,4.09129864,3219.4,3219.0,0.513]
[1768852750398,0.98512763,3219.3,3219.0,0.513]
[1768852751827,3.10800927,3219.6,3219.1,0.98442704]
[1768852752027,4.0931369,3219.6,3219.1,0.98442704]
[1768852755635,0.002,3219.3,3219.1,0.98442704]
[1768852757515,4.0931369,3219.6,3219.1,0.98442704]
[1768852758037,0.98512763,3219.5,3219.1,0.513]
[1768852764054,4.0912903,3219.5,3219.1,0.513]
[1768852770260,0.96539973,3219.4,3218.8,0.97462726]
[1768852770440,0.96539973,3219.4,3219.0,0.513]
[1768852770971,0.96539973,3219.4,3219.0,1.48762726]
[1768852771159,0.96539973,3219.4,3219.0,0.513]
[1768852774165,0.96539973,3219.3,3218.7,0.00080232]
[1768852774463,0.96539973,3219.3,3218.8,0.513]
[1768852775064,0.96539973,3219.3,3218.8,1.48762726]
[1768852775264,0.96539973,3219.3,3218.8,2.03647022]
[1768852775992,0.96539973,3219.3,3218.8,1.48762726]
[1768852776836,4.07168068,3219.3,3218.8,1.48762726]
[1768852777057,0.96539973,3219.2,3218.8,1.48762726]
[1768852779049,0.96539973,3219.2,3219.1,0.001]
[1768852781267,3.10636182,3219.2,3218.7,0.51380232]
[1768852781471,4.01966244,3219.1,3218.7,0.51380232]
[1768852782470,0.91316683,3219.0,3218.7,0.00080232]
[1768852784066,3.10640099,3219.2,3218.7,0.00080232]
[1768852784274,4.01956782,3219.2,3218.7,0.929216]
[1768852787485,0.91316683,3219.2,3218.7,0.929216]
[1768852787690,4.01937804,3219.4,3218.7,0.929216]
[1768852787895,0.4019378,3219.3,3218.7,0.929216]
[1768852788184,4.01937804,3219.4,3218.7,0.929216]
[1768852790575,4.01937804,3219.4,3219.0,0.001]
[1768852794590,0.91316683,3219.4,3219.0,0.001]
[1768852794794,4.01937464,3219.4,3219.0,0.001]
[1768852801111,3.10620781,3219.4,3219.0,0.95116847]
[1768852801315,3.81968857,3219.4,3219.0,0.95116847]
[1768852802008,3.1080492,3219.6,3219.0,0.95116847]
[1768852802221,0.002,3219.9,3219.4,0.95016847]
[1768852802400,3.10771253,3219.9,3219.4,0.95016847]
[1768852802615,0.92255063,3220.3,3219.7,0.95016847]
[1768852802785,0.002,3220.7,3219.8,0.513]
[1768852802980,0.002,3220.7,3220.1,0.95016847]
[1768852803207,0.002,3220.7,3220.0,5.79137797]
[1768852803208,0.002,3220.7,3220.3,0.95016847]
[1768852805606,0.002,3221.2,3220.7,0.95016847]
[1768852805815,3.10425392,3221.4,3220.7,0.95016847]
[1768852806044,3.10426173,3221.4,3220.7,1.46316847]
[1768852806241,0.513,3221.7,3220.7,0.4388763]
[1768852806242,0.92055063,3221.2,3220.7,0.4388763]
[1768852806530,0.92055063,3221.2,3220.2,0.67415464]
[1768852806531,0.92055063,3221.2,3220.2,0.95016847]
[1768852806684,0.92055063,3221.2,3220.3,0.95016847]
[1768852806882,0.002,3221.3,3220.6,0.95016847]
[1768852807307,0.513,3221.8,3221.0,0.95016847]
[1768852807497,0.92055063,3221.9,3221.2,0.95016847]
[1768852807709,4.02439436,3221.9,3221.2,0.95016847]
[1768852808234,4.02439436,3221.9,3221.1,0.513]
[1768852808235,0.92055063,3221.8,3221.1,0.513]
[1768852808538,0.92055063,3221.4,3220.6,0.95016847]
[1768852808824,0.92055063,3221.4,3220.7,4.0]
[1768852809125,0.92055063,3221.4,3220.7,4.95016847]
[1768852809295,0.92055063,3221.2,3220.7,0.95016847]
[1768852810299,0.92055063,3221.2,3220.6,0.513]
[1768852810501,0.92055063,3221.2,3220.6,1.46316847]
[1768852810934,0.92055063,3221.2,3220.7,0.95016847]
[1768852811135,3.10424039,3221.4,3220.7,0.95016847]
[1768852811705,4.02479102,3221.4,3220.7,0.95016847]
[1768852814253,4.02479102,3221.4,3221.0,0.001]
[1768852814654,0.92055063,3221.4,3221.0,0.001]
[1768852815322,3.10416291,3221.5,3221.0,0.95116847]
[1768852815756,0.92055063,3222.1,3221.0,0.95116847]
[1768852815909,0.92055063,3222.1,3221.1,0.95016847]
[1768852816111,0.92055063,3222.0,3221.1,0.95016847]
[1768852816412,4.02430928,3221.9,3221.3,0.95016847]
[1768852817153,0.92055063,3221.9,3221.3,0.95016847]
[1768852818063,4.02403037,3222.2,3221.4,0.95016847]
[1768852818360,0.92055063,3222.1,3221.5,0.95016847]
[1768852818535,0.92055063,3222.1,3221.1,0.95016847]
[1768852818869,0.92055063,3221.9,3221.0,0.95116847]
[1768852820482,0.92055063,3221.7,3221.0,0.95116847]
[1768852821369,0.92055063,3221.6,3221.0,0.001]
[1768852821669,0.92055063,3221.6,3220.3,0.72634449]
[1768852821871,0.92055063,3221.6,3220.6,1.23834449]
[1768852822235,0.92055063,3221.4,3220.5,4.72634449]
[1768852822430,0.92055063,3221.4,3220.6,0.512]
[1768852822839,0.98233219,3221.3,3220.7,4.0]
[1768852823038,0.98233219,3221.3,3220.6,0.512]
[1768852824574,0.71288387,3221.4,3220.3,0.72634449]
[1768852824575,0.98233219,3221.1,3220.3,0.72634449]
[1768852824736,0.98233219,3221.1,3219.3,3.10622144]
[1768852824737,0.98233219,3221.1,3220.4,4.0]
[1768852825069,0.98233219,3221.1,3220.2,1.23834449]
[1768852825664,0.98233219,3221.1,3220.3,0.72634449]
[1768852825852,0.98233219,3221.1,3220.7,0.001]
[1768852826740,0.98233219,3221.0,3220.7,0.001]
[1768852827274,0.98233219,3221.2,3220.7,0.72734449]
[1768852827857,4.08666894,3221.3,3220.7,0.72734449]
[1768852828467,0.98233219,3221.2,3220.7,0.72734449]
[1768852828971,4.08683325,3221.2,3220.7,0.72734449]
[1768852831480,0.002,3221.4,3220.7,0.72734449]
[1768852831481,0.98233219,3221.1,3220.7,0.72734449]
[1768852833083,3.10452862,3221.2,3220.7,0.72734449]
[1768852833284,4.08672972,3221.3,3220.7,0.72734449]
[1768852835669,0.98233219,3221.2,3220.7,0.72734449]
[1768852837496,4.08681355,3221.2,3220.7,0.72734449]
[1768852837696,4.08681355,3221.2,3220.8,0.512]
[1768852838196,4.08681355,3221.2,3221.0,0.001]
[1768852839299,0.98433219,3221.4,3221.0,0.001]
[1768852843017,0.91248888,3221.2,3221.0,0.001]
[1768852844698,4.0169236,3221.2,3221.0,0.001]
[1768852846010,0.91248888,3221.1,3220.7,0.001]
[1768852846998,4.01704967,3221.1,3220.7,0.001]
[1768852847980,0.91248888,3221.1,3220.7,0.001]
[1768852848488,4.01702775,3221.1,3220.7,0.001]
[1768852849911,4.01702775,3221.1,3221.0,0.001]
[1768852851315,4.01702775,3221.1,3220.7,0.001]
[1768852852080,0.91248888,3221.0,3220.7,0.001]
[1768852853482,0.93437361,3220.8,3220.7,0.001]
[1768852854519,0.93437361,3220.8,3220.2,0.72534449]
[1768852856018,0.93437361,3221.2,3220.4,0.72534449]
[1768852856187,0.513,3221.3,3220.7,0.72534449]
[1768852856639,0.002,3221.4,3221.0,0.72534449]
[1768852857297,3.10626125,3221.4,3221.0,0.72534449]
[1768852858812,0.002,3221.4,3221.0,0.72534449]
[1768852862127,0.002,3221.1,3221.0,0.72534449]
[1768852862548,0.002,3221.4,3220.8,0.72534449]
[1768852862716,0.002,3221.4,3221.0,0.72534449]
[1768852864028,0.93437361,3221.3,3220.6,0.72534449]
[1768852864229,0.93437361,3221.3,3220.5,0.65102492]
[1768852864525,0.93437361,3221.3,3220.3,0.72534449]
[1768852864526,0.93437361,3221.1,3220.3,0.72534449]
[1768852864732,0.93437361,3221.1,3220.3,1.23734449]
[1768852864931,0.002,3221.4,3219.7,5.78490473]
[1768852864932,0.515,3221.4,3221.0,0.72534449]
[1768852865106,0.002,3221.4,3221.0,0.72534449]
[1768852865311,0.513,3221.3,3221.0,1.37636941]
[1768852866434,0.513,3221.3,3221.1,0.72534449]
[1768852868342,0.002,3221.4,3221.1,0.72534449]
[1768852868526,0.513,3221.3,3221.1,0.72534449]
[1768852869747,0.513,3221.3,3221.0,1.37636941]
[1768852871749,0.512,3221.2,3221.0,1.37636941]
[1768852874344,0.002,3221.3,3221.1,0.72534449]
[1768852874547,0.002,3221.4,3221.1,0.72534449]
[1768852874716,0.93637361,3221.7,3221.2,0.72534449]
[1768852875130,0.512,3221.6,3221.2,0.72534449]
[1768852879253,0.512,3221.5,3221.2,0.72534449]
[1768852879835,0.002,3221.7,3221.2,0.72534449]
[1768852880034,0.512,3221.6,3221.2,0.72534449]
[1768852880922,0.002,3221.7,3221.3,0.72534449]
[1768852881345,0.514,3221.7,3221.3,0.72534449]
[1768852883259,0.35197157,3221.7,3221.3,0.72534449]
[1768852885965,0.512,3222.1,3221.5,0.88134449]
[1768852886130,0.96714885,3222.0,3221.5,0.88134449]
[1768852886330,0.81314885,3222.0,3221.5,0.88134449]
[1768852896876,0.512,3222.1,3221.5,0.88134449]
[1768852897043,4.07043603,3222.4,3221.8,5.78166642]
[1768852897044,0.512,3222.2,3221.8,5.78166642]
[1768852897244,0.512,3222.2,3221.9,0.67233301]
[1768852897482,0.512,3222.2,3221.7,0.9416637]
[1768852897684,1.47914885,3222.2,3221.7,0.9416637]
[1768852898745,0.002,3222.0,3221.7,0.9416637]
[1768852908229,4.02674416,3222.5,3221.6,0.91981827]
[1768852908527,0.92353797,3222.4,3221.6,0.91981827]
[1768852908742,1.43553797,3222.4,3221.6,0.91981827]
[1768852910234,0.92353797,3222.3,3221.6,0.91981827]
[1768852910597,0.92353797,3222.2,3221.6,0.91981827]
[1768852911136,0.92353797,3222.2,3221.8,0.001]
[1768852921838,0.512,3222.4,3221.8,0.96915712]
[1768852922160,0.99495,3222.5,3221.9,0.96815712]
[1768852922371,0.99495,3222.4,3221.9,0.96815712]
[1768852922522,0.99495,3222.4,3221.8,0.001]
[1768852922723,0.99495,3222.4,3221.2,1.68428453]
[1768852922926,0.99495,3222.0,3221.3,4.0]
[1768852923146,0.99495,3221.9,3221.3,4.0]
[1768852923734,0.99495,3221.9,3221.6,0.5]
[1768852924258,0.99495,3221.8,3221.1,0.96815712]
[1768852926569,0.99495,3221.8,3220.9,0.96815712]
[1768852926570,0.99495,3221.7,3220.9,0.96815712]
[1768852927926,0.99495,3221.5,3220.9,0.96815712]
[1768852929343,0.99495,3221.5,3220.8,0.96815712]
[1768852929533,0.99495,3221.5,3220.9,0.45850088]
[1768852930559,0.99495,3221.5,3220.7,1.48015712]
[1768852930766,0.99495,3221.4,3220.7,1.48015712]
[1768852931128,3.10430414,3221.4,3220.7,1.48015712]
[1768852931329,0.99495,3221.3,3220.7,0.512]
[1768852933235,0.99495,3221.3,3220.7,1.48015712]
[1768852933756,0.99495,3221.3,3220.8,0.45851573]
[1768852934265,0.99495,3221.3,3221.2,0.001]
[1768852936378,1.50695,3221.5,3221.2,0.001]
[1768852937265,0.99495,3221.4,3221.2,0.001]
[1768852938679,0.99495,3222.2,3221.2,0.001]
[1768852938872,1.50695,3222.1,3221.2,0.96915712]
[1768852939036,0.99495,3221.9,3221.2,0.96915712]
[1768852939584,1.50695,3221.8,3221.2,0.96915712]
[1768852939765,0.99495,3221.7,3221.2,0.96915712]
[1768852942751,0.99495,3221.6,3221.2,0.001]
[1768852945087,0.94157096,3221.5,3221.2,0.001]
[1768852945291,0.94157096,3221.5,3220.7,1.43276995]
[1768852945498,6.20812672,3221.6,3220.7,0.512]
[1768852945499,0.94157096,3221.4,3220.7,0.512]
[1768852946173,0.94157096,3221.3,3220.7,0.512]
[1768852946355,0.94157096,3221.3,3220.5,0.92076995]
[1768852946560,0.94157096,3221.3,3220.3,1.43276995]
[1768852947298,0.94157096,3221.1,3220.3,1.43276995]
[1768852947504,0.94157096,3221.1,3220.4,1.37458554]
[1768852947955,0.94157096,3221.1,3220.5,0.92076995]
[1768852950300,0.94157096,3221.0,3220.5,0.92076995]
[1768852950462,0.94157096,3221.0,3220.4,1.37458554]
[1768852951087,0.94157096,3221.0,3220.3,0.512]
[1768852951488,0.94157096,3220.9,3220.3,1.43276995]
[1768852951676,0.94157096,3220.9,3220.3,0.512]
[1768852955272,0.94157096,3220.8,3220.3,0.512]
[1768852955601,0.94157096,3220.8,3219.9,1.43276995]
[1768852955895,0.94157096,3220.8,3220.0,3.33913526]
[1768852956090,0.94157096,3220.8,3220.0,1.02133614]
[1768852956498,0.94157096,3220.8,3220.0,1.94210609]
[1768852956875,0.94157096,3220.8,3220.0,5.0476839]
[1768852957501,0.94157096,3220.8,3220.3,0.001]
[1768852958002,0.94157096,3220.7,3220.3,0.001]
[1768852969315,0.94157096,3220.7,3220.3,0.2345703]
[1768852974285,0.94157096,3220.7,3220.6,0.5]
[1768852978290,0.94157096,3220.7,3220.6,0.3735539]
[1768852979009,0.94157096,3220.7,3220.3,0.2345703]
[1768852979801,0.94157096,3220.7,3220.6,0.001]
[1768852985923,3.61666881,3221.0,3220.6,0.001]
[1768852985924,0.92652994,3220.9,3220.6,0.001]
[1768852989739,0.92652994,3220.8,3220.6,0.001]
[1768852994521,0.515,3220.9,3220.6,0.001]
[1768852995320,1.44152994,3220.9,3220.6,0.001]
[1768852995640,0.92652994,3220.8,3220.6,0.001]
[1768852996146,0.92652994,3220.7,3220.3,0.001]
[1768852998156,0.92652994,3220.6,3220.3,0.001]
[1768852999846,0.92652994,3220.6,3219.7,0.97378449]
[1768853000047,0.92652994,3220.5,3219.8,0.4079711]
[1768853000224,0.92652994,3220.4,3219.7,0.97378449]
[1768853002037,3.10526234,3220.4,3219.7,0.97378449]
[1768853002237,0.92652994,3220.3,3219.7,0.97378449]
[1768853002559,0.92652994,3220.3,3219.5,1.48578449]
[1768853002855,0.002,3220.9,3220.1,0.95347122]
[1768853003045,4.04086046,3221.4,3220.3,1.18704152]
[1768853003836,3.88686046,3221.4,3220.9,0.95347122]
[1768853004034,3.88586046,3221.4,3220.9,0.95347122]
[1768853004237,3.10427325,3221.4,3220.9,0.95347122]
[1768853004463,0.93658721,3221.3,3220.4,0.95347122]
[1768853004629,0.93658721,3221.3,3220.4,0.76469189]
[1768853004825,0.93658721,3221.3,3220.4,0.95347122]
[1768853006225,0.93658721,3221.1,3220.4,0.95347122]
[1768853006449,0.93658721,3221.0,3220.1,0.95347122]
[1768853008861,0.93658721,3220.9,3220.1,0.95347122]
[1768853009232,0.93658721,3220.9,3220.1,1.41078606]
[1768853009433,0.93658721,3220.9,3220.1,0.95347122]
[1768853011065,0.93658721,3220.7,3220.1,0.95347122]
[1768853012044,0.93658721,3220.6,3220.0,0.001]
[1768853013184,0.93658721,3220.6,3220.0,0.95447122]
[1768853013378,0.93658721,3220.8,3220.0,0.95447122]
[1768853013567,0.513,3220.7,3220.4,0.95347122]
[1768853014377,0.93658721,3220.8,3220.4,0.95347122]
[1768853017675,0.513,3220.9,3220.4,0.95347122]
[1768853017866,1.44958721,3220.9,3220.4,0.95347122]
[1768853018267,4.55432517,3220.9,3220.4,0.95347122]
[1768853018575,0.93658721,3220.8,3220.1,0.95347122]
[1768853018940,0.93658721,3220.8,3220.0,0.001]
[1768853019145,0.93658721,3220.5,3220.0,0.001]
[1768853022659,0.93658721,3220.5,3220.0,0.92346655]
[1768853023688,0.94454371,3220.7,3220.0,0.92346655]
[1768853024748,0.94454371,3220.6,3220.0,0.92346655]
[1768853027400,0.94454371,3220.6,3220.3,0.001]
[1768853028604,1.45754371,3220.8,3220.3,0.92346655]
[1768853029004,0.94454371,3220.7,3220.3,0.92346655]
[1768853029189,0.94454371,3220.7,3220.3,0.001]
[1768853038177,0.76669635,3220.8,3220.3,0.97770283]
[1768853038383,0.513,3220.8,3220.3,0.97770283]
[1768853038806,0.513,3220.8,3220.6,0.001]
[1768853039020,0.99658704,3220.9,3220.6,0.001]
[1768853040322,4.10131192,3220.9,3220.6,0.001]
[1768853040620,0.99658704,3220.9,3220.6,0.001]
[1768853041489,6.20848078,3221.4,3220.6,0.97770283]
[1768853041693,7.20506782,3221.4,3220.6,0.97770283]
[1768853042123,0.99658704,3221.3,3220.6,0.97770283]
[1768853042424,0.99658704,3221.4,3220.6,0.97770283]
[1768853042636,0.99658704,3221.4,3220.8,0.97670283]
[1768853044229,0.513,3221.6,3220.8,0.97670283]
[1768853044230,4.61368707,3221.6,3220.8,0.97670283]
[1768853044595,0.99658704,3221.7,3220.8,0.97670283]
[1768853044794,0.99658704,3221.6,3220.8,0.97670283]
[1768853045126,0.99658704,3221.6,3221.0,0.97670283]
[1768853045928,4.10048497,3221.8,3221.0,0.97670283]
[1768853046227,0.99658704,3221.7,3221.0,0.97670283]
[1768853046932,0.99658704,3221.7,3221.1,0.97670283]
[1768853048531,3.10389793,3221.8,3221.1,0.97670283]
[1768853048734,3.10389793,3221.8,3221.1,1.16648886]
[1768853048931,0.99658704,3221.8,3221.1,1.16648886]
[1768853050036,0.002,3221.4,3221.1,1.16648886]
[1768853057340,0.99858704,3221.4,3221.1,0.18978603]
[1768853057929,0.002,3221.4,3221.1,0.18978603]
[1768853058935,0.002,3221.4,3221.1,0.97670283]
[1768853067384,0.96226427,3221.4,3221.0,0.513]
[1768853067542,4.06652117,3221.4,3221.0,0.513]
[1768853068038,0.96226427,3221.4,3221.0,0.513]
[1768853072802,0.96226427,3221.4,3221.0,1.45299343]
[1768853072990,0.002,3221.4,3221.0,1.45299343]
[1768853073902,0.002,3221.1,3221.0,1.45299343]
[1768853075595,0.002,3221.4,3221.0,1.45299343]
[1768853081103,0.98435273,3221.4,3221.0,0.513]
[1768853081310,0.98235273,3221.3,3220.7,0.512]
[1768853082700,0.98235273,3221.2,3220.7,0.512]
[1768853083102,0.98235273,3221.2,3221.0,0.5]
[1768853084599,0.98235273,3221.2,3220.7,1.4859403]
[1768853085635,0.002,3221.1,3220.7,1.4859403]
[1768853087017,0.98435273,3221.1,3220.7,0.512]
[1768853088020,0.98435273,3221.1,3221.0,0.5]
[1768853088721,0.98435273,3221.1,3220.7,0.512]
[1768853091110,0.98435273,3221.1,3220.6,0.9749403]
[1768853091296,0.98435273,3221.1,3220.7,0.512]
[1768853094432,0.98435273,3221.1,3220.6,1.4869403]
[1768853094736,3.1066123,3221.1,3220.6,0.001]
[1768853094911,0.93028648,3221.0,3220.6,0.001]
[1768853096220,3.1066123,3221.1,3220.6,0.001]
[1768853096221,0.93028648,3220.9,3220.6,0.001]
[1768853100842,0.93028648,3220.7,3220.3,0.001]
[1768853101897,0.002,3221.1,3220.4,0.92831003]
[1768853102101,0.002,3221.1,3220.5,0.92831003]
[1768853102335,0.002,3221.1,3220.7,0.92831003]
[1768853108937,0.002,3221.1,3221.0,0.001]
[1768853115810,0.93228648,3221.1,3221.0,0.001]
[1768853118445,4.75093731,3221.1,3221.0,0.001]
[1768853118743,0.93028648,3221.0,3220.6,0.51]
[1768853119713,0.93028648,3221.0,3220.6,1.43831003]
[1768853119913,0.002,3221.1,3220.7,0.92831003]
[1768853120847,0.002,3220.8,3220.7,0.92831003]
[1768853131351,0.002,3220.8,3220.6,0.51]
[1768853135581,0.002,3220.8,3220.6,1.43283984]
[1768853143468,0.002,3220.8,3220.6,0.51]
[1768853146474,0.002,3220.8,3220.7,0.99805087]
[1768853146691,0.002,3220.8,3220.6,0.51]
[1768853161164,0.95436877,3220.8,3220.6,0.51]
[1768853162659,0.002,3220.8,3220.6,0.51]
[1768853175574,0.95236877,3221.0,3220.6,0.51]
[1768853178611,0.95236877,3221.0,3220.3,0.001]
[1768853178783,0.95236877,3220.9,3220.0,0.514]
[1768853181911,0.95236877,3220.7,3220.0,0.514]
[1768853184009,0.98064343,3220.6,3220.0,0.514]
[1768853186809,0.98064343,3220.6,3220.0,3.61958558]
[1768853186990,0.98064343,3220.6,3220.0,4.38969659]
[1768853187307,0.98064343,3220.6,3220.1,0.97575027]
[1768853187507,0.002,3221.1,3220.3,0.97575027]
[1768853187508,0.98064343,3220.8,3220.3,0.97575027]
[1768853189792,0.98064343,3220.8,3220.3,0.97675027]
[1768853189993,0.002,3220.6,3220.3,0.97675027]
[1768853193717,0.002,3220.6,3220.3,0.001]
[1768853193898,0.98264343,3220.6,3220.2,0.513]
[1768853198321,0.98064343,3220.5,3220.2,0.513]
[1768853202319,0.002,3220.3,3220.2,0.513]
[1768853204798,0.002,3220.6,3220.2,0.513]
[1768853205009,0.002,3220.6,3220.2,1.40331527]
[1768853207428,0.002,3220.6,3220.3,0.94669734]
[1768853211128,1.00182629,3220.6,3220.2,1.40331527]
[1768853211323,1.00182629,3220.6,3220.2,0.45661793]
[1768853214103,0.002,3220.3,3220.2,0.45661793]
[1768853214303,1.00182629,3220.6,3220.2,0.45661793]
[1768853216834,1.00182629,3220.6,3220.2,1.45217427]
[1768853217036,0.002,3220.6,3220.2,1.45217427]
[1768853221138,0.002,3220.6,3220.2,4.55756592]
[1768853221320,0.002,3220.9,3220.4,0.99555634]
[1768853221508,4.05853949,3220.9,3220.4,0.99555634]
[1768853221709,0.95179327,3220.8,3220.3,0.50706619]
[1768853221908,0.95179327,3220.8,3220.2,1.45217427]
[1768853222638,0.95179327,3220.8,3220.3,0.99555634]
[1768853223838,3.10676713,3220.9,3220.3,0.99555634]
[1768853224140,4.0585604,3220.9,3220.3,0.99555634]
[1768853225441,4.0585604,3220.9,3220.3,6.78249699]
[1768853225637,4.0585604,3220.9,3220.4,1.71946783]
[1768853225842,0.002,3220.5,3220.4,1.71946783]
[1768853226014,0.002,3220.8,3220.4,1.71946783]
[1768853238455,0.002,3220.5,3220.4,1.71946783]
[1768853238655,0.002,3220.8,3220.4,1.71946783]
[1768853241241,0.002,3220.8,3220.5,0.75064085]
[1768853241626,0.002,3220.8,3220.5,1.74619719]
[1768853251484,0.002,3220.8,3220.5,0.99555634]
[1768853252487,4.0585604,3220.9,3220.6,0.91523143]
[1768853252488,0.002,3220.9,3220.6,0.91523143]
[1768853252651,0.002,3221.1,3220.6,0.91523143]
[1768853255385,0.002,3221.1,3220.7,0.91523143]
[1768853255577,0.002,3221.4,3220.6,8.89194349]
[1768853255578,0.93917366,3221.4,3220.8,1.89594892]
[1768853256674,4.04341752,3221.4,3220.8,1.89594892]
[1768853257083,0.93917366,3221.4,3220.9,0.91523143]
[1768853259961,4.04344842,3221.4,3220.9,0.91523143]
[1768853260162,0.93717366,3221.3,3220.9,0.91523143]
[1768853260483,0.93717366,3221.3,3220.8,0.98071749]
[1768853261498,0.93717366,3221.3,3221.1,0.001]
[1768853267176,0.002,3221.4,3221.1,0.001]
[1768853267554,0.97890818,3221.4,3221.1,0.001]
[1768853274194,0.002,3221.4,3221.1,0.001]
[1768853275492,0.93304105,3221.4,3221.1,0.001]
[1768853287627,3.10625156,3221.4,3221.1,0.001]
[1768853287825,0.93104105,3221.3,3220.6,0.97326627]
[1768853288212,0.93104105,3221.3,3220.7,0.97326627]
[1768853289128,0.93104105,3221.3,3220.7,4.07817992]
[1768853289438,0.93104105,3221.3,3220.8,0.97326627]
[1768853293615,4.03538432,3221.3,3220.8,0.97326627]
[1768853295136,0.93104105,3221.2,3220.8,0.97326627]
[1768853295843,0.93104105,3221.0,3220.0,0.001]
[1768853296008,0.93104105,3221.0,3220.1,1.48626627]
[1768853296337,0.93104105,3221.0,3220.2,0.97326627]
[1768853297925,0.002,3221.1,3220.0,0.001]
[1768853297926,0.93104105,3220.8,3220.0,1.48726627]
[1768853298127,0.93104105,3220.7,3220.1,0.513]
[1768853298327,0.93104105,3220.7,3220.1,1.48626627]
[1768853300146,4.03605031,3220.7,3220.1,1.48626627]
[1768853300332,0.93104105,3220.6,3220.1,1.48626627]
[1768853302142,4.03606846,3220.6,3220.1,0.97326627]
[1768853302326,4.03606846,3220.6,3220.1,0.513]
[1768853302327,0.93104105,3220.5,3220.1,0.513]
[1768853302522,0.93104105,3220.5,3220.0,0.001]
[1768853302726,0.93104105,3220.5,3220.0,0.514]
[1768853302926,0.93104105,3220.5,3220.0,1.45156667]
[1768853305335,0.93104105,3220.5,3220.1,0.93756667]
[1768853305913,4.02965924,3220.7,3220.1,0.93756667]
[1768853306114,0.92470373,3220.6,3220.1,0.93756667]
[1768853308646,0.92470373,3220.6,3220.4,0.001]
[1768853311245,3.10495551,3220.7,3220.4,0.001]
[1768853311449,4.02965924,3220.7,3220.4,0.001]
[1768853317152,0.92470373,3220.6,3220.4,0.001]
[1768853319254,4.02973362,3220.6,3220.4,0.001]
[1768853320223,0.92470373,3220.6,3220.4,0.001]
[1768853326773,4.02971933,3220.6,3220.4,0.001]
[1768853332856,0.92470373,3220.6,3220.4,0.001]
[1768853333883,3.10495761,3220.7,3220.4,0.001]
[1768853334462,4.03364341,3220.7,3220.4,0.001]
[1768853336285,4.74748969,3220.7,3220.4,0.001]
[1768853340170,4.74748969,3220.7,3220.0,0.001]
[1768853340171,0.9286858,3220.5,3220.0,0.001]
[1768853340657,8.89151839,3221.0,3220.4,0.96637122]
[1768853340658,4.03331169,3221.0,3220.4,0.96637122]
[1768853340870,6.20932142,3221.0,3220.4,0.96637122]
[1768853341069,3.81862661,3221.0,3220.4,0.96637122]
[1768853341596,6.92332214,3221.0,3220.4,0.96637122]
[1768853341904,7.85200794,3221.0,3220.4,0.96637122]
[1768853342493,4.74731241,3221.0,3220.4,0.96637122]
[1768853343091,0.71400072,3221.0,3220.4,0.96637122]
[1768853343299,4.03526353,3221.1,3220.4,0.96637122]
[1768853343596,4.03526353,3221.1,3220.5,0.96637122]
[1768853344097,0.9306858,3221.1,3220.5,0.96637122]
[1768853344296,0.002,3221.1,3220.5,0.96637122]
[1768853344598,0.002,3221.1,3220.6,0.96637122]
[1768853344896,0.9306858,3221.1,3220.1,0.96637122]
[1768853345194,0.9306858,3221.1,3220.4,0.96637122]
[1768853345499,0.002,3221.1,3220.5,0.96637122]
[1768853345898,0.002,3221.1,3220.6,0.96637122]
[1768853346200,0.513,3221.5,3220.6,0.96637122]
[1768853346201,3.10412915,3221.6,3221.0,0.96637122]
[1768853346399,4.03281495,3221.6,3221.0,0.96637122]
[1768853347702,7.1369441,3221.6,3221.0,0.96637122]
[1768853348204,6.2082583,3221.6,3221.0,0.96637122]
[1768853348398,0.9286858,3221.5,3221.0,0.96637122]
[1768853350100,4.03290634,3221.5,3221.0,0.96637122]
[1768853354802,4.03290634,3221.5,3221.3,0.001]
[1768853360283,3.10422054,3221.5,3221.3,0.001]
[1768853360484,4.03290634,3221.5,3221.3,0.001]
[1768853369729,0.95522973,3221.4,3220.6,0.93006667]
[1768853369922,0.95522973,3221.4,3220.6,0.92706667]
[1768853370313,0.95522973,3221.2,3220.3,1.44306667]
[1768853373608,6.209059,3221.1,3220.4,0.93006667]
[1768853373803,0.95522973,3221.0,3220.4,0.93006667]
[1768853375933,4.05971125,3221.2,3220.5,0.93006667]
[1768853376142,3.10436312,3221.3,3220.6,0.93006667]
[1768853377919,3.10436312,3221.3,3220.6,0.93106667]
[1768853380242,3.10436312,3221.3,3220.7,0.513]
[1768853380423,3.10436312,3221.3,3220.8,0.93006667]
[1768853382042,4.01783177,3221.3,3220.8,0.93006667]
[1768853383240,3.10436312,3221.3,3220.8,0.93006667]
[1768853386846,4.01783177,3221.3,3220.8,0.93006667]
[1768853387649,7.12219489,3221.3,3220.8,0.93006667]
[1768853389550,0.002,3221.0,3220.8,0.93006667]
[1768853401347,0.002,3221.0,3220.7,0.513]
[1768853401672,0.002,3221.0,3220.7,1.41605841]
[1768853403679,0.002,3221.0,3220.8,0.90305841]
[1768853404948,0.002,3221.0,3220.7,0.513]
[1768853405242,0.002,3221.0,3220.7,1.41605841]
[1768853412380,0.90739698,3221.0,3220.6,0.001]
[1768853412677,0.90539698,3220.9,3220.6,0.001]
[1768853413059,0.002,3220.7,3220.6,0.001]
[1768853424892,0.9619026,3220.7,3220.6,0.001]
[1768853425390,0.002,3220.7,3220.6,0.001]
[1768853431777,0.9619026,3220.7,3220.6,0.001]
[1768853431977,1.36856785,3220.7,3220.6,0.001]